[Event "Titled Tuesday Blitz June 07 Late 2022"]
[White "Rustemov, Alexander"]
[Black "Bortnyk, Olexandr"]
[WhiteFideId "4119002"]
[BlackFideId "14120828"]
[WhiteElo "2774"]
[BlackElo "2723"]
[Result "0-1"]
[Round "09"]
[TimeControl "180+1"]
[Date "2022.06.07"]
[WhiteClock "0:00:22"]
[BlackClock "0:00:03"]

1. d4 {[%clk 0:03:00]}  d6 {[%clk 0:02:59]} 2. c4 {[%clk 0:03:01]}  e5 {[%clk 0:02:59]} 3. Nf3 {[%clk 0:02:58]}  e4 {[%clk 0:02:58]} 4. Ng5 {[%clk 0:02:58]}  f5 {[%clk 0:02:58]} 5. g3 {[%clk 0:02:56]}  Be7 {[%clk 0:02:59]} 6. Nh3 {[%clk 0:02:55]}  Nf6 {[%clk 0:02:58]} 7. Bg2 {[%clk 0:02:55]}  O-O {[%clk 0:02:57]} 8. Nc3 {[%clk 0:02:54]}  c6 {[%clk 0:02:57]} 9. d5 {[%clk 0:02:55]}  Nbd7 {[%clk 0:02:56]} 10. O-O {[%clk 0:02:53]}  Ne5 {[%clk 0:02:56]} 11. b3 {[%clk 0:02:53]}  Qa5 {[%clk 0:02:54]} 12. Bd2 {[%clk 0:02:50]}  Qa6 {[%clk 0:02:54]} 13. f3 {[%clk 0:02:40]}  cxd5 {[%clk 0:02:51]} 14. cxd5 {[%clk 0:02:37]}  Qb6+ {[%clk 0:02:19]} 15. Kh1 {[%clk 0:02:37]}  e3 {[%clk 0:02:19]} 16. Bc1 {[%clk 0:02:34]}  Bd7 {[%clk 0:02:18]} 17. Nf4 {[%clk 0:02:18]}  Rac8 {[%clk 0:02:13]} 18. Na4 {[%clk 0:02:18]}  Bxa4 {[%clk 0:02:08]} 19. bxa4 {[%clk 0:02:19]}  Rc3 {[%clk 0:02:01]} 20. Ne6 {[%clk 0:01:56]}  Rfc8 {[%clk 0:01:59]} 21. f4 {[%clk 0:01:56]}  Neg4 {[%clk 0:01:34]} 22. Qd4 {[%clk 0:01:55]}  Qa6 {[%clk 0:00:39]} 23. Bf3 {[%clk 0:01:49]}  Nf2+ {[%clk 0:00:36]} 24. Kg2 {[%clk 0:01:49]}  R8c4 {[%clk 0:00:36]} 25. Bxe3 {[%clk 0:01:34]}  Rxd4 {[%clk 0:00:35]} 26. Bxd4 {[%clk 0:01:35]}  N2e4 {[%clk 0:00:25]} 27. Bxc3 {[%clk 0:01:34]}  Nxc3 {[%clk 0:00:26]} 28. Rac1 {[%clk 0:01:34]}  Nfxd5 {[%clk 0:00:22]} 29. Kh1 {[%clk 0:01:16]}  Qxa4 {[%clk 0:00:22]} 30. Nc7 {[%clk 0:01:01]}  Nxc7 {[%clk 0:00:15]} 31. Rxc3 {[%clk 0:01:01]}  Ne6 {[%clk 0:00:12]} 32. Bd5 {[%clk 0:00:57]}  Kf8 {[%clk 0:00:11]} 33. Rc8+ {[%clk 0:00:54]}  Kf7 {[%clk 0:00:11]} 34. e4 {[%clk 0:00:50]}  Kf6 {[%clk 0:00:07]} 35. Re1 {[%clk 0:00:35]}  Nc5 {[%clk 0:00:06]} 36. exf5 {[%clk 0:00:30]}  Qd4 {[%clk 0:00:04]} 37. Bf3 {[%clk 0:00:22]}  Qf2 {[%clk 0:00:03]} 0-1


[Site "https://www.chess.com"]

[Event "Titled Tuesday Blitz June 07 Late 2022"]
[White "Rychagov, Andrey"]
[Black "Zhurbinsky, David"]
[WhiteFideId "4119932"]
[BlackFideId "2072904"]
[WhiteElo "2460"]
[BlackElo "2566"]
[Result "1-0"]
[Round "09"]
[TimeControl "180+1"]
[Date "2022.06.07"]
[WhiteClock "0:00:15"]
[BlackClock "0:00:07"]

1. d4 {[%clk 0:02:56]}  Nf6 {[%clk 0:03:00]} 2. c4 {[%clk 0:02:56]}  e6 {[%clk 0:03:00]} 3. Nf3 {[%clk 0:02:55]}  Bb4+ {[%clk 0:03:01]} 4. Bd2 {[%clk 0:02:55]}  Qe7 {[%clk 0:03:01]} 5. e3 {[%clk 0:02:52]}  O-O {[%clk 0:03:02]} 6. Nc3 {[%clk 0:02:51]}  d6 {[%clk 0:02:59]} 7. a3 {[%clk 0:02:44]}  Bxc3 {[%clk 0:02:59]} 8. Bxc3 {[%clk 0:02:44]}  Nbd7 {[%clk 0:03:00]} 9. Be2 {[%clk 0:02:44]}  a5 {[%clk 0:03:00]} 10. O-O {[%clk 0:02:43]}  b6 {[%clk 0:02:58]} 11. b4 {[%clk 0:02:38]}  axb4 {[%clk 0:02:56]} 12. axb4 {[%clk 0:02:38]}  Bb7 {[%clk 0:02:55]} 13. Qb3 {[%clk 0:02:36]}  Ne4 {[%clk 0:02:47]} 14. Bb2 {[%clk 0:02:35]}  Kh8 {[%clk 0:02:27]} 15. Rfd1 {[%clk 0:02:34]}  f5 {[%clk 0:02:24]} 16. d5 {[%clk 0:02:31]}  e5 {[%clk 0:02:18]} 17. Ne1 {[%clk 0:02:23]}  Qh4 {[%clk 0:02:07]} 18. g3 {[%clk 0:02:19]}  Qh6 {[%clk 0:02:04]} 19. f3 {[%clk 0:02:00]}  Ng5 {[%clk 0:01:43]} 20. h4 {[%clk 0:01:59]}  Nf7 {[%clk 0:01:17]} 21. f4 {[%clk 0:01:57]}  exf4 {[%clk 0:01:10]} 22. exf4 {[%clk 0:01:56]}  Rae8 {[%clk 0:01:10]} 23. Bf3 {[%clk 0:01:49]}  Qg6 {[%clk 0:01:06]} 24. Kg2 {[%clk 0:01:31]}  Nh6 {[%clk 0:01:05]} 25. Rd2 {[%clk 0:01:26]}  Ng4 {[%clk 0:01:03]} 26. Bxg4 {[%clk 0:01:26]}  Qxg4 {[%clk 0:01:04]} 27. Qf3 {[%clk 0:01:25]}  Qg6 {[%clk 0:00:52]} 28. Nc2 {[%clk 0:01:16]}  Re4 {[%clk 0:00:50]} 29. Nd4 {[%clk 0:01:12]}  Rfe8 {[%clk 0:00:47]} 30. Ra7 {[%clk 0:00:59]}  Re3 {[%clk 0:00:42]} 31. Qf2 {[%clk 0:00:59]}  Nf6 {[%clk 0:00:23]} 32. Rxb7 {[%clk 0:00:29]}  Ng4 {[%clk 0:00:24]} 33. Qg1 {[%clk 0:00:29]}  Nf6 {[%clk 0:00:05]} 34. Kh2 {[%clk 0:00:28]}  Ng4+ {[%clk 0:00:04]} 35. Kh1 {[%clk 0:00:28]}  Nf6 {[%clk 0:00:05]} 36. Rg2 {[%clk 0:00:23]}  Nh5 {[%clk 0:00:04]} 37. Ne6 {[%clk 0:00:21]}  Nf6 {[%clk 0:00:01]} 38. Qxe3 {[%clk 0:00:21]}  Ng4 {[%clk 0:00:01]} 39. Qe2 {[%clk 0:00:19]}  Qh5 {[%clk 0:00:01]} 40. Nxg7 {[%clk 0:00:17]}  Kg8 {[%clk 0:00:01]} 41. Qxe8+ {[%clk 0:00:15]}  Qxe8 {[%clk 0:00:02]} 42. Nxe8 {[%clk 0:00:16]}  Ne3 {[%clk 0:00:03]} 43. Nf6+ {[%clk 0:00:15]}  Kf7 {[%clk 0:00:04]} 44. Re2 {[%clk 0:00:16]}  Kg6 {[%clk 0:00:05]} 45. Rxe3 {[%clk 0:00:15]}  b5 {[%clk 0:00:05]} 46. h5+ {[%clk 0:00:15]}  Kh6 {[%clk 0:00:06]} 47. Rxc7 {[%clk 0:00:16]}  bxc4 {[%clk 0:00:07]} 48. Rxh7# {[%clk 0:00:15]} 1-0


[Site "https://www.chess.com"]

[Event "Titled Tuesday Blitz June 07 Late 2022"]
[White "Svane, Frederik"]
[Black "Xiong, Jeffery"]
[WhiteFideId "12923044"]
[BlackFideId "2047640"]
[WhiteElo "2459"]
[BlackElo "2714"]
[Result "1-0"]
[Round "09"]
[TimeControl "180+1"]
[Date "2022.06.07"]
[WhiteClock "0:00:18"]
[BlackClock "0:00:03"]

1. e4 {[%clk 0:03:00]}  c5 {[%clk 0:02:58]} 2. Nf3 {[%clk 0:03:01]}  d6 {[%clk 0:02:59]} 3. Bb5+ {[%clk 0:03:01]}  Nd7 {[%clk 0:02:59]} 4. a4 {[%clk 0:03:00]}  a6 {[%clk 0:02:54]} 5. Be2 {[%clk 0:03:00]}  b6 {[%clk 0:02:49]} 6. Nc3 {[%clk 0:03:00]}  Bb7 {[%clk 0:02:49]} 7. d4 {[%clk 0:02:55]}  cxd4 {[%clk 0:02:48]} 8. Qxd4 {[%clk 0:02:56]}  Ngf6 {[%clk 0:02:49]} 9. O-O {[%clk 0:02:55]}  g6 {[%clk 0:02:49]} 10. e5 {[%clk 0:02:32]}  dxe5 {[%clk 0:02:32]} 11. Nxe5 {[%clk 0:02:33]}  Nxe5 {[%clk 0:02:16]} 12. Qxe5 {[%clk 0:02:34]}  Bg7 {[%clk 0:02:17]} 13. Be3 {[%clk 0:02:22]}  O-O {[%clk 0:02:17]} 14. Rfd1 {[%clk 0:02:22]}  Qc8 {[%clk 0:02:18]} 15. Qxe7 {[%clk 0:02:19]}  Re8 {[%clk 0:02:18]} 16. Qb4 {[%clk 0:02:17]}  Nd7 {[%clk 0:01:43]} 17. Bg4 {[%clk 0:02:16]}  f5 {[%clk 0:01:39]} 18. Be2 {[%clk 0:02:16]}  Kh8 {[%clk 0:01:12]} 19. Qd6 {[%clk 0:02:12]}  Ne5 {[%clk 0:01:07]} 20. Qxb6 {[%clk 0:02:12]}  Rb8 {[%clk 0:01:06]} 21. Qc5 {[%clk 0:02:10]}  Qe6 {[%clk 0:01:04]} 22. Rd6 {[%clk 0:02:01]}  Qf7 {[%clk 0:01:04]} 23. Rad1 {[%clk 0:01:58]}  f4 {[%clk 0:00:59]} 24. Bd4 {[%clk 0:01:54]}  f3 {[%clk 0:00:57]} 25. Bxa6 {[%clk 0:01:40]}  Bxa6 {[%clk 0:00:30]} 26. Rxa6 {[%clk 0:01:41]}  fxg2 {[%clk 0:00:31]} 27. Bxe5 {[%clk 0:01:39]}  Bxe5 {[%clk 0:00:32]} 28. Qd5 {[%clk 0:01:24]}  Qf4 {[%clk 0:00:32]} 29. Qxg2 {[%clk 0:01:23]}  Rxb2 {[%clk 0:00:32]} 30. Nd5 {[%clk 0:01:20]}  Qc4 {[%clk 0:00:32]} 31. Ra7 {[%clk 0:01:15]}  Qxc2 {[%clk 0:00:31]} 32. Qf3 {[%clk 0:01:04]}  Rb3 {[%clk 0:00:24]} 33. Ne3 {[%clk 0:00:35]}  Rxe3 {[%clk 0:00:21]} 34. fxe3 {[%clk 0:00:36]}  Bxh2+ {[%clk 0:00:21]} 35. Kf1 {[%clk 0:00:30]}  Qc4+ {[%clk 0:00:19]} 36. Kg2 {[%clk 0:00:26]}  Qc2+ {[%clk 0:00:20]} 37. Qf2 {[%clk 0:00:18]}  Qb3 {[%clk 0:00:03]} 38. Qf6+ {[%clk 0:00:18]} 1-0


[Site "https://www.chess.com"]

[Event "Titled Tuesday Blitz June 07 Late 2022"]
[White "Tanenbaum, Zachary"]
[Black "Ibarra Jerez, Jose Carlos"]
[WhiteFideId "2060850"]
[BlackFideId "2226332"]
[WhiteElo "2175"]
[BlackElo "2628"]
[Result "0-1"]
[Round "09"]
[TimeControl "180+1"]
[Date "2022.06.07"]
[WhiteClock "0:00:03"]
[BlackClock "0:00:04"]

1. e4 {[%clk 0:03:00]}  c5 {[%clk 0:02:59]} 2. Nf3 {[%clk 0:03:01]}  e6 {[%clk 0:02:59]} 3. d4 {[%clk 0:03:02]}  cxd4 {[%clk 0:03:00]} 4. Nxd4 {[%clk 0:03:02]}  Bc5 {[%clk 0:03:00]} 5. Nc3 {[%clk 0:02:52]}  Qb6 {[%clk 0:03:00]} 6. Na4 {[%clk 0:02:14]}  Qa5+ {[%clk 0:03:00]} 7. c3 {[%clk 0:02:14]}  Bxd4 {[%clk 0:02:59]} 8. Qxd4 {[%clk 0:02:15]}  Nf6 {[%clk 0:02:59]} 9. Nc5 {[%clk 0:02:07]}  Nc6 {[%clk 0:02:57]} 10. Qd6 {[%clk 0:02:06]}  b6 {[%clk 0:02:56]} 11. b4 {[%clk 0:01:32]}  Nxb4 {[%clk 0:02:47]} 12. Nb3 {[%clk 0:01:32]}  Nc2+ {[%clk 0:02:39]} 13. Kd1 {[%clk 0:01:32]}  Qxc3 {[%clk 0:02:21]} 14. Bd2 {[%clk 0:01:29]}  Qb2 {[%clk 0:02:19]} 15. Bc1 {[%clk 0:01:21]}  Qc3 {[%clk 0:02:09]} 16. Bd2 {[%clk 0:01:22]}  Qc6 {[%clk 0:01:28]} 17. Qxc6 {[%clk 0:01:21]}  dxc6 {[%clk 0:01:28]} 18. Kxc2 {[%clk 0:01:22]}  Nxe4 {[%clk 0:01:28]} 19. Be3 {[%clk 0:01:16]}  c5 {[%clk 0:01:26]} 20. Be2 {[%clk 0:01:02]}  Bb7 {[%clk 0:01:23]} 21. Bf3 {[%clk 0:01:02]}  O-O-O {[%clk 0:01:22]} 22. Rad1 {[%clk 0:00:58]}  f5 {[%clk 0:01:08]} 23. Rhe1 {[%clk 0:00:48]}  h6 {[%clk 0:01:02]} 24. Nd2 {[%clk 0:00:42]}  Nf6 {[%clk 0:01:00]} 25. Bxb7+ {[%clk 0:00:41]}  Kxb7 {[%clk 0:01:01]} 26. Nc4 {[%clk 0:00:39]}  Nd5 {[%clk 0:00:55]} 27. Ne5 {[%clk 0:00:37]}  Rhe8 {[%clk 0:00:48]} 28. g3 {[%clk 0:00:27]}  Nb4+ {[%clk 0:00:43]} 29. Kb3 {[%clk 0:00:26]}  Rd5 {[%clk 0:00:43]} 30. Bf4 {[%clk 0:00:16]}  g5 {[%clk 0:00:40]} 31. Nf7 {[%clk 0:00:13]}  Kc6 {[%clk 0:00:27]} 32. Ne5+ {[%clk 0:00:08]}  Kb7 {[%clk 0:00:22]} 33. Nf7 {[%clk 0:00:08]}  Kc6 {[%clk 0:00:12]} 34. Ne5+ {[%clk 0:00:09]}  Kb5 {[%clk 0:00:13]} 35. a4+ {[%clk 0:00:08]}  Ka6 {[%clk 0:00:14]} 36. Bc1 {[%clk 0:00:07]}  Red8 {[%clk 0:00:13]} 37. Rxd5 {[%clk 0:00:06]}  exd5 {[%clk 0:00:12]} 38. Nf7 {[%clk 0:00:06]}  Rf8 {[%clk 0:00:08]} 39. Nxh6 {[%clk 0:00:06]}  f4 {[%clk 0:00:08]} 40. gxf4 {[%clk 0:00:06]}  gxf4 {[%clk 0:00:08]} 41. h4 {[%clk 0:00:06]}  Nc6 {[%clk 0:00:06]} 42. h5 {[%clk 0:00:05]}  Nd4+ {[%clk 0:00:06]} 43. Kc3 {[%clk 0:00:04]}  Nf3 {[%clk 0:00:05]} 44. Re6 {[%clk 0:00:03]}  Ng5 {[%clk 0:00:04]} 45. Rg6 {[%clk 0:00:03]}  Ne4+ {[%clk 0:00:05]} 46. Kc2 {[%clk 0:00:03]}  Nxf2 {[%clk 0:00:05]} 47. Ng4 {[%clk 0:00:03]}  Nxg4 {[%clk 0:00:04]} 48. Rxg4 {[%clk 0:00:04]}  f3 {[%clk 0:00:05]} 49. Rg1 {[%clk 0:00:04]}  f2 {[%clk 0:00:05]} 50. Rf1 {[%clk 0:00:04]}  Rf3 {[%clk 0:00:05]} 51. h6 {[%clk 0:00:04]}  Ka5 {[%clk 0:00:05]} 52. Kd2 {[%clk 0:00:04]}  Kxa4 {[%clk 0:00:02]} 53. Ke2 {[%clk 0:00:04]}  Rh3 {[%clk 0:00:03]} 54. Rxf2 {[%clk 0:00:05]}  d4 {[%clk 0:00:03]} 55. Rf7 {[%clk 0:00:04]}  a5 {[%clk 0:00:03]} 56. h7 {[%clk 0:00:05]}  Kb3 {[%clk 0:00:03]} 57. Bg5 {[%clk 0:00:04]}  Kc2 {[%clk 0:00:03]} 58. Bf6 {[%clk 0:00:04]}  d3+ {[%clk 0:00:03]} 59. Kf2 {[%clk 0:00:04]}  d2 {[%clk 0:00:04]} 60. Rd7 {[%clk 0:00:04]}  d1=Q {[%clk 0:00:03]} 61. Rxd1 {[%clk 0:00:04]}  Kxd1 {[%clk 0:00:04]} 62. h8=Q {[%clk 0:00:05]}  Rxh8 {[%clk 0:00:04]} 63. Bxh8 {[%clk 0:00:05]}  Kc2 {[%clk 0:00:04]} 64. Ke3 {[%clk 0:00:06]}  c4 {[%clk 0:00:04]} 65. Bd4 {[%clk 0:00:05]}  b5 {[%clk 0:00:04]} 66. Bb6 {[%clk 0:00:05]}  a4 {[%clk 0:00:04]} 67. Bc5 {[%clk 0:00:02]}  Kb3 {[%clk 0:00:03]} 68. Kd4 {[%clk 0:00:02]}  a3 {[%clk 0:00:04]} 69. Ke3 {[%clk 0:00:02]}  c3 {[%clk 0:00:03]} 70. Bd4 {[%clk 0:00:02]}  a2 {[%clk 0:00:04]} 71. Kd3 {[%clk 0:00:03]}  b4 {[%clk 0:00:04]} 0-1


[Site "https://www.chess.com"]

[Event "Titled Tuesday Blitz June 07 Late 2022"]
[White "Terry, Renato"]
[Black "Tahbaz, Arash"]
[WhiteFideId "3803457"]
[BlackFideId "12528846"]
[WhiteElo "2577"]
[BlackElo "2389"]
[Result "1/2-1/2"]
[Round "09"]
[TimeControl "180+1"]
[Date "2022.06.07"]
[WhiteClock "0:00:12"]
[BlackClock "0:00:23"]

1. d4 {[%clk 0:03:00]}  Nf6 {[%clk 0:02:48]} 2. Nf3 {[%clk 0:03:01]}  g6 {[%clk 0:02:49]} 3. Bg5 {[%clk 0:03:01]}  Bg7 {[%clk 0:02:49]} 4. c3 {[%clk 0:03:01]}  O-O {[%clk 0:02:49]} 5. Nbd2 {[%clk 0:03:02]}  d5 {[%clk 0:02:41]} 6. e3 {[%clk 0:03:02]}  b6 {[%clk 0:02:41]} 7. Be2 {[%clk 0:03:02]}  c5 {[%clk 0:02:42]} 8. O-O {[%clk 0:03:02]}  Bb7 {[%clk 0:02:42]} 9. Ne5 {[%clk 0:02:58]}  Nc6 {[%clk 0:02:33]} 10. f4 {[%clk 0:02:58]}  Qc7 {[%clk 0:02:29]} 11. Bh4 {[%clk 0:02:52]}  Ne8 {[%clk 0:02:28]} 12. Ndf3 {[%clk 0:02:24]}  Nd6 {[%clk 0:02:23]} 13. Bd3 {[%clk 0:02:23]}  f6 {[%clk 0:02:15]} 14. Nxc6 {[%clk 0:02:01]}  Bxc6 {[%clk 0:02:16]} 15. Bg3 {[%clk 0:01:52]}  Bd7 {[%clk 0:02:10]} 16. Nh4 {[%clk 0:01:38]}  c4 {[%clk 0:01:56]} 17. Bc2 {[%clk 0:01:38]}  Qc8 {[%clk 0:01:57]} 18. h3 {[%clk 0:01:29]}  Nf5 {[%clk 0:01:54]} 19. Nxf5 {[%clk 0:01:08]}  Bxf5 {[%clk 0:01:55]} 20. Re1 {[%clk 0:01:07]}  Bxc2 {[%clk 0:01:41]} 21. Qxc2 {[%clk 0:01:08]}  f5 {[%clk 0:01:39]} 22. Bh4 {[%clk 0:01:08]}  Qe6 {[%clk 0:01:37]} 23. b4 {[%clk 0:00:58]}  Bf6 {[%clk 0:01:34]} 24. Bxf6 {[%clk 0:00:53]}  exf6 {[%clk 0:01:35]} 25. a4 {[%clk 0:00:52]}  a6 {[%clk 0:01:33]} 26. Re2 {[%clk 0:00:50]}  Rfe8 {[%clk 0:01:33]} 27. Rae1 {[%clk 0:00:43]}  Qd7 {[%clk 0:01:33]} 28. g3 {[%clk 0:00:43]}  a5 {[%clk 0:01:32]} 29. b5 {[%clk 0:00:42]}  Re4 {[%clk 0:01:32]} 30. Kf2 {[%clk 0:00:43]}  Qd6 {[%clk 0:01:31]} 31. Rg1 {[%clk 0:00:36]}  Rae8 {[%clk 0:01:26]} 32. Qd2 {[%clk 0:00:32]}  Qa3 {[%clk 0:01:25]} 33. Qc2 {[%clk 0:00:32]}  Kf7 {[%clk 0:01:23]} 34. Rf1 {[%clk 0:00:28]}  Qd6 {[%clk 0:01:23]} 35. Rg1 {[%clk 0:00:28]}  Qe6 {[%clk 0:01:21]} 36. Qd2 {[%clk 0:00:28]}  Qe7 {[%clk 0:01:22]} 37. Rge1 {[%clk 0:00:27]}  g5 {[%clk 0:01:12]} 38. Rg1 {[%clk 0:00:24]}  Kg6 {[%clk 0:01:12]} 39. Rg2 {[%clk 0:00:24]}  h6 {[%clk 0:01:07]} 40. Rg1 {[%clk 0:00:24]}  Kh7 {[%clk 0:01:08]} 41. Rg2 {[%clk 0:00:21]}  Qa3 {[%clk 0:01:08]} 42. Qc2 {[%clk 0:00:21]}  Qf8 {[%clk 0:01:09]} 43. Qd2 {[%clk 0:00:21]}  Qf7 {[%clk 0:01:10]} 44. Re1 {[%clk 0:00:16]}  Qh5 {[%clk 0:01:10]} 45. Rh2 {[%clk 0:00:16]}  gxf4 {[%clk 0:01:07]} 46. gxf4 {[%clk 0:00:17]}  Qh4+ {[%clk 0:01:08]} 47. Kf1 {[%clk 0:00:18]}  Qg3 {[%clk 0:01:04]} 48. Qf2 {[%clk 0:00:18]}  Rg8 {[%clk 0:00:16]} 49. Qxg3 {[%clk 0:00:18]}  Rxg3 {[%clk 0:00:17]} 50. Kf2 {[%clk 0:00:19]}  Rg8 {[%clk 0:00:17]} 51. Rg2 {[%clk 0:00:15]}  Rxg2+ {[%clk 0:00:16]} 52. Kxg2 {[%clk 0:00:16]}  Kg6 {[%clk 0:00:16]} 53. Kf3 {[%clk 0:00:14]}  Kf7 {[%clk 0:00:16]} 54. Rg1 {[%clk 0:00:14]}  Re8 {[%clk 0:00:17]} 55. h4 {[%clk 0:00:14]}  h5 {[%clk 0:00:16]} 56. Rg3 {[%clk 0:00:13]}  Rd8 {[%clk 0:00:16]} 57. Rg2 {[%clk 0:00:13]}  Re8 {[%clk 0:00:16]} 58. Rg1 {[%clk 0:00:13]}  Rc8 {[%clk 0:00:17]} 59. Rg2 {[%clk 0:00:14]}  Rh8 {[%clk 0:00:17]} 60. Rg3 {[%clk 0:00:13]}  Ra8 {[%clk 0:00:18]} 61. Rg1 {[%clk 0:00:13]}  Rf8 {[%clk 0:00:18]} 62. Kf2 {[%clk 0:00:13]}  Re8 {[%clk 0:00:17]} 63. Rg2 {[%clk 0:00:13]}  Rf8 {[%clk 0:00:13]} 64. Rg3 {[%clk 0:00:13]}  Rh8 {[%clk 0:00:13]} 65. Rg1 {[%clk 0:00:13]}  Rg8 {[%clk 0:00:13]} 66. Rxg8 {[%clk 0:00:10]}  Kxg8 {[%clk 0:00:14]} 67. Kg3 {[%clk 0:00:05]}  Kf7 {[%clk 0:00:15]} 68. Kg2 {[%clk 0:00:06]}  Ke6 {[%clk 0:00:15]} 69. Kf2 {[%clk 0:00:06]}  Kd6 {[%clk 0:00:16]} 70. Ke2 {[%clk 0:00:06]}  Kd7 {[%clk 0:00:17]} 71. Kf3 {[%clk 0:00:07]}  Kc7 {[%clk 0:00:17]} 72. Kf2 {[%clk 0:00:08]}  Kd8 {[%clk 0:00:18]} 73. Kg2 {[%clk 0:00:09]}  Kc8 {[%clk 0:00:18]} 74. Kg3 {[%clk 0:00:10]}  Kb7 {[%clk 0:00:19]} 75. Kf2 {[%clk 0:00:11]}  Ka7 {[%clk 0:00:20]} 76. Kf3 {[%clk 0:00:11]}  Ka8 {[%clk 0:00:21]} 77. Kg2 {[%clk 0:00:12]}  Kb8 {[%clk 0:00:21]} 78. Kg3 {[%clk 0:00:13]}  Kc8 {[%clk 0:00:22]} 79. Kf2 {[%clk 0:00:14]}  Kd8 {[%clk 0:00:23]} 80. Ke2 {[%clk 0:00:15]}  Ke8 {[%clk 0:00:23]} 81. Kf2 {[%clk 0:00:12]} 1/2-1/2


[Site "https://www.chess.com"]

[Event "Titled Tuesday Blitz June 07 Late 2022"]
[White "Urazayev, Arystanbek"]
[Black "Souleidis, Georgios"]
[WhiteFideId "13709810"]
[BlackFideId "4206827"]
[WhiteElo "2422"]
[BlackElo "2401"]
[Result "1-0"]
[Round "09"]
[TimeControl "180+1"]
[Date "2022.06.07"]
[WhiteClock "0:00:14"]
[BlackClock "0:00:03"]

1. d4 {[%clk 0:03:00]}  Nf6 {[%clk 0:02:59]} 2. c4 {[%clk 0:03:01]}  g6 {[%clk 0:02:59]} 3. Nc3 {[%clk 0:03:01]}  Bg7 {[%clk 0:03:00]} 4. e4 {[%clk 0:03:02]}  d6 {[%clk 0:03:01]} 5. Be2 {[%clk 0:03:02]}  O-O {[%clk 0:03:01]} 6. Be3 {[%clk 0:03:02]}  e5 {[%clk 0:03:01]} 7. d5 {[%clk 0:03:02]}  Na6 {[%clk 0:03:02]} 8. h4 {[%clk 0:03:02]}  Nc5 {[%clk 0:03:02]} 9. Qb1 {[%clk 0:03:02]}  a5 {[%clk 0:02:58]} 10. h5 {[%clk 0:03:01]}  Ng4 {[%clk 0:02:52]} 11. Bxg4 {[%clk 0:02:54]}  Bxg4 {[%clk 0:02:52]} 12. f3 {[%clk 0:02:53]}  Bd7 {[%clk 0:02:52]} 13. h6 {[%clk 0:02:51]}  Bf6 {[%clk 0:02:47]} 14. g4 {[%clk 0:02:29]}  Bg5 {[%clk 0:02:36]} 15. Bf2 {[%clk 0:02:05]}  f5 {[%clk 0:02:26]} 16. gxf5 {[%clk 0:01:45]}  gxf5 {[%clk 0:02:26]} 17. Qc2 {[%clk 0:01:21]}  fxe4 {[%clk 0:02:24]} 18. Bxc5 {[%clk 0:01:15]}  dxc5 {[%clk 0:02:23]} 19. Nxe4 {[%clk 0:01:16]}  Bf5 {[%clk 0:01:46]} 20. Qg2 {[%clk 0:01:13]}  Bxe4 {[%clk 0:01:46]} 21. fxe4 {[%clk 0:01:13]}  Kh8 {[%clk 0:01:45]} 22. Nf3 {[%clk 0:01:11]}  Rg8 {[%clk 0:01:15]} 23. Nxg5 {[%clk 0:01:11]}  Rxg5 {[%clk 0:01:15]} 24. Qf2 {[%clk 0:01:11]}  Qe7 {[%clk 0:01:11]} 25. O-O-O {[%clk 0:01:10]}  Rf8 {[%clk 0:01:10]} 26. Qe3 {[%clk 0:01:11]}  Rg6 {[%clk 0:01:06]} 27. Rdf1 {[%clk 0:01:10]}  b6 {[%clk 0:01:01]} 28. a3 {[%clk 0:00:52]}  Rgf6 {[%clk 0:00:59]} 29. Rxf6 {[%clk 0:00:45]}  Qxf6 {[%clk 0:00:50]} 30. Kb1 {[%clk 0:00:38]}  Qf4 {[%clk 0:00:39]} 31. Qe1 {[%clk 0:00:39]}  Rf6 {[%clk 0:00:25]} 32. Rh4 {[%clk 0:00:35]}  Qg5 {[%clk 0:00:18]} 33. Qh1 {[%clk 0:00:30]}  Rf4 {[%clk 0:00:15]} 34. Rh5 {[%clk 0:00:16]}  Qf6 {[%clk 0:00:13]} 35. Ka2 {[%clk 0:00:16]}  a4 {[%clk 0:00:12]} 36. Qg2 {[%clk 0:00:15]}  Rf2 {[%clk 0:00:07]} 37. Qg5 {[%clk 0:00:15]}  Qxg5 {[%clk 0:00:04]} 38. Rxg5 {[%clk 0:00:15]}  Rf6 {[%clk 0:00:04]} 39. Rxe5 {[%clk 0:00:14]}  Rxh6 {[%clk 0:00:04]} 40. Re7 {[%clk 0:00:15]}  Rh4 {[%clk 0:00:02]} 41. e5 {[%clk 0:00:14]}  Rxc4 {[%clk 0:00:02]} 42. Rxc7 {[%clk 0:00:14]}  Re4 {[%clk 0:00:01]} 43. e6 {[%clk 0:00:13]}  Kg8 {[%clk 0:00:01]} 44. Re7 {[%clk 0:00:12]}  Kf8 {[%clk 0:00:01]} 45. d6 {[%clk 0:00:12]}  h5 {[%clk 0:00:01]} 46. Rf7+ {[%clk 0:00:12]}  Ke8 {[%clk 0:00:02]} 47. d7+ {[%clk 0:00:13]}  Kd8 {[%clk 0:00:02]} 48. Rf8+ {[%clk 0:00:13]}  Kc7 {[%clk 0:00:03]} 49. d8=Q+ {[%clk 0:00:14]} 1-0


[Site "https://www.chess.com"]